[Event "*** Titled Tuesday Blitz"]
[Site "Chess.com"]
[Date "2021.04.06"]
[Round "7"]
[White "fearless_guy"]
[Black "scandalgod"]
[Result "1/2-1/2"]
[WhiteElo "2788"]
[BlackElo "2573"]
[TimeControl "180+1"]
[EndTime "11:18:14 PDT"]
[Termination "Game drawn by agreement"]

1. e4 {[%clk 0:02:59.2]} 1... e5 {[%clk 0:01:59.5]} 2. Nf3 {[%clk 0:02:55.3]}
2... Nc6 {[%clk 0:01:59.7]} 3. d4 {[%clk 0:02:55.9]} 3... exd4 {[%clk
0:01:59.1]} 4. Nxd4 {[%clk 0:02:56.8]} 4... Bc5 {[%clk 0:01:59.3]} 5. Be3 {[%clk
0:02:56.8]} 5... Qf6 {[%clk 0:01:58.8]} 6. c3 {[%clk 0:02:57.3]} 6... Nge7
{[%clk 0:01:56.8]} 7. Bb5 {[%clk 0:02:57.6]} 7... O-O {[%clk 0:01:55.2]} 8. O-O
{[%clk 0:02:57.3]} 8... Bb6 {[%clk 0:01:25.2]} 9. a4 {[%clk 0:02:54.7]} 9... d5
{[%clk 0:01:18.4]} 10. Bxc6 {[%clk 0:02:53.9]} 10... bxc6 {[%clk 0:01:14]} 11.
a5 {[%clk 0:02:54.3]} 11... Bxd4 {[%clk 0:01:11.3]} 12. Bxd4 {[%clk 0:02:55.2]}
12... Qg6 {[%clk 0:01:09.9]} 13. Nd2 {[%clk 0:02:55.3]} 13... dxe4 {[%clk
0:01:05.1]} 14. Nxe4 {[%clk 0:02:56.2]} 14... Nf5 {[%clk 0:00:51.5]} 15. Bc5
{[%clk 0:02:44.6]} 15... Re8 {[%clk 0:00:47.5]} 16. Re1 {[%clk 0:02:42.3]} 16...
Be6 {[%clk 0:00:45.7]} 17. a6 {[%clk 0:02:31]} 17... Bd5 {[%clk 0:00:42.1]} 18.
Ng3 {[%clk 0:02:28.5]} 18... Rxe1+ {[%clk 0:00:41.2]} 19. Qxe1 {[%clk
0:02:28.6]} 19... Nh4 {[%clk 0:00:39]} 20. f3 {[%clk 0:01:51.4]} 20... Bxf3
{[%clk 0:00:34.6]} 21. Qf2 {[%clk 0:01:46.2]} 21... Bd5 {[%clk 0:00:31.7]} 22.
Bxa7 {[%clk 0:01:43.4]} 22... f6 {[%clk 0:00:20.8]} 23. Bc5 {[%clk 0:01:26.4]}
23... Nxg2 {[%clk 0:00:18]} 24. Qf5 {[%clk 0:01:23.7]} 24... Qh6 {[%clk
0:00:14.8]} 25. Qh5 {[%clk 0:01:11.2]} 25... Qd2 {[%clk 0:00:14.2]} 26. Qe2
{[%clk 0:01:05.8]} 26... Qh6 {[%clk 0:00:13.8]} 27. Qh5 {[%clk 0:00:34.4]} 27...
Qd2 {[%clk 0:00:13.5]} 28. Qe2 {[%clk 0:00:33.9]} 28... Qh6 {[%clk 0:00:12.9]}
1/2-1/2

[Event "*** Titled Tuesday Blitz"]
[Site "Chess.com"]
[Date "2021.04.06"]
[Round "7"]
[White "Niktlt"]
[Black "crazy_but_lazy"]
[Result "1-0"]
[WhiteElo "2575"]
[BlackElo "2423"]
[TimeControl "180+1"]
[EndTime "11:18:14 PDT"]
[Termination "Niktlt won by resignation"]

1. e4 {[%clk 0:03:00.9]} 1... c5 {[%clk 0:02:58.7]} 2. Nf3 {[%clk 0:03:00.7]}
2... Nc6 {[%clk 0:02:57.6]} 3. d4 {[%clk 0:03:00.9]} 3... cxd4 {[%clk
0:02:56.7]} 4. Nxd4 {[%clk 0:03:01.8]} 4... Qb6 {[%clk 0:02:57]} 5. Nb3 {[%clk
0:03:00.2]} 5... Nf6 {[%clk 0:02:54.6]} 6. Nc3 {[%clk 0:03:00.2]} 6... e6 {[%clk
0:02:54.3]} 7. Be3 {[%clk 0:02:59.3]} 7... Qc7 {[%clk 0:02:53.2]} 8. Be2 {[%clk
0:02:58.7]} 8... a6 {[%clk 0:02:50.4]} 9. Qd2 {[%clk 0:02:58.4]} 9... d6 {[%clk
0:02:43.8]} 10. f4 {[%clk 0:02:58.2]} 10... Be7 {[%clk 0:02:44]} 11. a3 {[%clk
0:02:57.3]} 11... O-O {[%clk 0:02:41.2]} 12. Bf3 {[%clk 0:02:57.3]} 12... b5
{[%clk 0:02:26.1]} 13. g4 {[%clk 0:02:55.8]} 13... Bb7 {[%clk 0:02:25.7]} 14. g5
{[%clk 0:02:55.6]} 14... Nd7 {[%clk 0:02:24.9]} 15. h4 {[%clk 0:02:55.9]} 15...
Nc5 {[%clk 0:02:23.8]} 16. h5 {[%clk 0:02:51.6]} 16... Rad8 {[%clk 0:01:44.7]}
17. g6 {[%clk 0:02:49.3]} 17... f5 {[%clk 0:01:24.7]} 18. gxh7+ {[%clk
0:02:45.1]} 18... Kh8 {[%clk 0:01:24.9]} 19. exf5 {[%clk 0:02:41.5]} 19... Rxf5
{[%clk 0:01:24.5]} 20. h6 {[%clk 0:02:41.4]} 20... Bf8 {[%clk 0:01:08.8]} 21.
hxg7+ {[%clk 0:02:29.1]} 21... Bxg7 {[%clk 0:01:09.3]} 22. Rg1 {[%clk
0:02:29.4]} 22... Nxb3 {[%clk 0:00:39.9]} 23. cxb3 {[%clk 0:02:30.3]} 23... Na5
{[%clk 0:00:40.5]} 24. Bd1 {[%clk 0:02:23.9]} 24... e5 {[%clk 0:00:25.6]} 25.
Rc1 {[%clk 0:02:02.7]} 25... exf4 {[%clk 0:00:21.9]} 26. Bd4 {[%clk 0:02:01.6]}
26... Qe7+ {[%clk 0:00:17.8]} 27. Kf1 {[%clk 0:02:00.6]} 27... Be5 {[%clk
0:00:15.1]} 28. Bc2 {[%clk 0:01:47.6]} 28... Rf6 {[%clk 0:00:12.7]} 29. Re1
{[%clk 0:01:46.4]} 29... Nc6 {[%clk 0:00:11.9]} 30. Nd5 {[%clk 0:01:43.7]} 30...
Qf7 {[%clk 0:00:08.3]} 31. Bxe5 {[%clk 0:01:39.8]} 31... dxe5 {[%clk 0:00:07.9]}
32. Nxf6 {[%clk 0:01:40.1]} 32... Qxf6 {[%clk 0:00:06.4]} 33. Qxd8+ {[%clk
0:01:40.1]} 33... Qxd8 {[%clk 0:00:05.4]} 34. Rg8+ {[%clk 0:01:41]} 34... Qxg8
{[%clk 0:00:05.9]} 35. hxg8=Q+ {[%clk 0:01:41.9]} 35... Kxg8 {[%clk 0:00:06.8]}
36. Be4 {[%clk 0:01:42.6]} 36... Kf7 {[%clk 0:00:06.6]} 37. Bxc6 {[%clk
0:01:42.1]} 37... Bxc6 {[%clk 0:00:07.5]} 38. Rxe5 {[%clk 0:01:42.8]} 38... Kf6
{[%clk 0:00:07.7]} 39. Rc5 {[%clk 0:01:42.9]} 39... Be4 {[%clk 0:00:07.1]} 40.
Kf2 {[%clk 0:01:42.1]} 40... Ke6 {[%clk 0:00:07.6]} 41. Rc7 {[%clk 0:01:39.5]}
41... Bd5 {[%clk 0:00:06.1]} 42. b4 {[%clk 0:01:36.6]} 42... Ke5 {[%clk
0:00:05.7]} 43. Ra7 {[%clk 0:01:33.7]} 43... Kd4 {[%clk 0:00:06.3]} 44. Rxa6
{[%clk 0:01:32.6]} 44... Kc4 {[%clk 0:00:06.7]} 45. Rd6 {[%clk 0:01:27.7]} 45...
Be4 {[%clk 0:00:06.3]} 46. Rd2 {[%clk 0:01:27.1]} 46... Kb3 {[%clk 0:00:06.2]}
47. Rd4 {[%clk 0:01:17.8]} 47... Bc2 {[%clk 0:00:06]} 48. Rxf4 {[%clk
0:01:16.8]} 48... Kxb2 {[%clk 0:00:06.3]} 49. Ke3 {[%clk 0:01:15.6]} 49... Kxa3
{[%clk 0:00:06.2]} 50. Kd2 {[%clk 0:01:15.6]} 50... Bb3 {[%clk 0:00:06.1]} 51.
Kc3 {[%clk 0:01:15.2]} 51... Bc4 {[%clk 0:00:04.9]} 52. Rxc4 {[%clk 0:01:15]}
1-0

[Event "*** Titled Tuesday Blitz"]
[Site "Chess.com"]
[Date "2021.04.06"]
[Round "7"]
[White "BeyondMadness"]
[Black "Mihnea2017"]
[Result "0-1"]
[WhiteElo "2270"]
[BlackElo "2450"]
[TimeControl "180+1"]
[EndTime "11:18:14 PDT"]
[Termination "Mihnea2017 won on time"]

1. d4 {[%clk 0:03:00.9]} 1... Nf6 {[%clk 0:02:59.7]} 2. c4 {[%clk 0:03:01]} 2...
e6 {[%clk 0:03:00.6]} 3. Nc3 {[%clk 0:03:00.4]} 3... Bb4 {[%clk 0:02:59.5]} 4.
f3 {[%clk 0:02:59.6]} 4... c5 {[%clk 0:02:58.2]} 5. d5 {[%clk 0:02:59.3]} 5...
O-O {[%clk 0:02:52]} 6. e4 {[%clk 0:02:58.6]} 6... b5 {[%clk 0:02:52.3]} 7. Nh3
{[%clk 0:02:49.7]} 7... bxc4 {[%clk 0:02:48.3]} 8. Bxc4 {[%clk 0:02:48.8]} 8...
exd5 {[%clk 0:02:48]} 9. Bxd5 {[%clk 0:02:47.2]} 9... Nxd5 {[%clk 0:02:39.3]}
10. Qxd5 {[%clk 0:02:46.9]} 10... Nc6 {[%clk 0:02:39.8]} 11. O-O {[%clk
0:02:44.2]} 11... Ba6 {[%clk 0:02:21.3]} 12. Rd1 {[%clk 0:02:37.3]} 12... Nd4
{[%clk 0:02:20.7]} 13. Nf4 {[%clk 0:02:26]} 13... Qh4 {[%clk 0:02:13.1]} 14. a3
{[%clk 0:02:00.8]} 14... Bxc3 {[%clk 0:02:11.7]} 15. bxc3 {[%clk 0:02:00.1]}
15... Be2 {[%clk 0:01:37.8]} 16. cxd4 {[%clk 0:01:01.6]} 16... Bxd1 {[%clk
0:01:37.7]} 17. Bd2 {[%clk 0:00:56.4]} 17... Ba4 {[%clk 0:01:28.4]} 18. Qxc5
{[%clk 0:00:51.6]} 18... Rac8 {[%clk 0:01:24.3]} 19. Qa5 {[%clk 0:00:50.3]}
19... Rc2 {[%clk 0:01:22.7]} 20. Nd5 {[%clk 0:00:47.8]} 20... f5 {[%clk
0:00:47.5]} 21. g3 {[%clk 0:00:19.7]} 21... Qd8 {[%clk 0:00:36.8]} 22. Qxa4
{[%clk 0:00:17.4]} 22... Rxd2 {[%clk 0:00:36.4]} 23. Qc4 {[%clk 0:00:14.1]}
23... Kh8 {[%clk 0:00:35.8]} 24. e5 {[%clk 0:00:13.5]} 24... f4 {[%clk
0:00:33.8]} 25. Qc3 {[%clk 0:00:09.8]} 25... Re2 {[%clk 0:00:29.3]} 26. Nxf4
{[%clk 0:00:09]} 26... Rxf4 {[%clk 0:00:25.4]} 27. gxf4 {[%clk 0:00:09.9]} 27...
h6 {[%clk 0:00:24.8]} 28. Qd3 {[%clk 0:00:07.7]} 28... Rb2 {[%clk 0:00:24.6]}
29. Rb1 {[%clk 0:00:04.9]} 29... Qb6 {[%clk 0:00:24.9]} 30. Rxb2 {[%clk
0:00:03.7]} 30... Qxb2 {[%clk 0:00:25.8]} 31. d5 {[%clk 0:00:02.8]} 31... Qc1+
{[%clk 0:00:25.7]} 32. Kg2 {[%clk 0:00:02.2]} 32... Qxf4 {[%clk 0:00:26]} 33.
Qe4 {[%clk 0:00:01.4]} 33... Qd2+ {[%clk 0:00:25]} 34. Kg3 {[%clk 0:00:01.1]}
34... Qg5+ {[%clk 0:00:24.8]} 0-1

[Event "*** Titled Tuesday Blitz"]
[Site "Chess.com"]
[Date "2021.04.06"]
[Round "7"]
[White "Kapibara_Warri0r"]
[Black "Sjakkerntobi"]
[Result "0-1"]
[WhiteElo "2243"]
[BlackElo "2383"]
[TimeControl "180+1"]
[EndTime "11:18:16 PDT"]
[Termination "Sjakkerntobi won on time"]

1. d4 {[%clk 0:03:00.9]} 1... e6 {[%clk 0:02:59.1]} 2. Bf4 {[%clk 0:02:57.8]}
2... Nf6 {[%clk 0:02:58.9]} 3. c3 {[%clk 0:02:57.8]} 3... c5 {[%clk 0:02:59]} 4.
e3 {[%clk 0:02:57.4]} 4... d5 {[%clk 0:02:59.2]} 5. h3 {[%clk 0:02:57.6]} 5...
Nc6 {[%clk 0:02:59.9]} 6. Bh2 {[%clk 0:02:57.2]} 6... Bd6 {[%clk 0:03:00.1]} 7.
Bd3 {[%clk 0:02:56.8]} 7... O-O {[%clk 0:02:58.5]} 8. Nf3 {[%clk 0:02:56.1]}
8... Bxh2 {[%clk 0:02:57.3]} 9. Nxh2 {[%clk 0:02:56.2]} 9... e5 {[%clk 0:02:58]}
10. dxe5 {[%clk 0:02:46.7]} 10... Nxe5 {[%clk 0:02:58.9]} 11. Bc2 {[%clk
0:02:46.4]} 11... Qe7 {[%clk 0:02:36.7]} 12. Na3 {[%clk 0:02:20.1]} 12... a6
{[%clk 0:02:20.9]} 13. Ng4 {[%clk 0:02:13.7]} 13... Rd8 {[%clk 0:02:08.8]} 14.
Qe2 {[%clk 0:01:48.4]} 14... Nexg4 {[%clk 0:01:42.7]} 15. hxg4 {[%clk 0:01:48]}
15... Bxg4 {[%clk 0:01:43.6]} 16. Bxh7+ {[%clk 0:01:47.1]} 16... Nxh7 {[%clk
0:01:43.8]} 17. Qxg4 {[%clk 0:01:46.8]} 17... Nf6 {[%clk 0:01:35.8]} 18. Qh4
{[%clk 0:01:44.7]} 18... Kf8 {[%clk 0:01:36.2]} 19. O-O-O {[%clk 0:01:35.1]}
19... b5 {[%clk 0:01:36.1]} 20. g4 {[%clk 0:01:21.8]} 20... b4 {[%clk
0:01:33.7]} 21. Nb1 {[%clk 0:01:22.1]} 21... d4 {[%clk 0:01:30.1]} 22. exd4
{[%clk 0:01:18.4]} 22... bxc3 {[%clk 0:01:29.1]} 23. Nxc3 {[%clk 0:01:13.2]}
23... cxd4 {[%clk 0:01:27.9]} 24. g5 {[%clk 0:00:40.1]} 24... Ng8 {[%clk
0:01:12.5]} 25. Rxd4 {[%clk 0:00:39.4]} 25... Rxd4 {[%clk 0:01:09.8]} 26. Qxd4
{[%clk 0:00:40.3]} 26... Qxg5+ {[%clk 0:01:10.5]} 27. Kb1 {[%clk 0:00:35.6]}
27... Rd8 {[%clk 0:01:09.3]} 28. Qb4+ {[%clk 0:00:33.5]} 28... Qe7 {[%clk
0:01:09.4]} 29. Qf4 {[%clk 0:00:20.3]} 29... a5 {[%clk 0:01:04.3]} 30. Ne4
{[%clk 0:00:15.8]} 30... Rd4 {[%clk 0:00:58.4]} 31. Qb8+ {[%clk 0:00:14.8]}
31... Rd8 {[%clk 0:00:58.6]} 32. Qf4 {[%clk 0:00:14.7]} 32... Qe6 {[%clk
0:00:56.6]} 33. Ng5 {[%clk 0:00:13.1]} 33... Qg6+ {[%clk 0:00:56.6]} 34. Ka1
{[%clk 0:00:12.9]} 34... Nh6 {[%clk 0:00:40.5]} 35. Re1 {[%clk 0:00:04.2]} 35...
Qc6 {[%clk 0:00:33.7]} 36. Ne6+ {[%clk 0:00:02.6]} 36... Qxe6 {[%clk 0:00:33.9]}
0-1

[Event "*** Titled Tuesday Blitz"]
[Site "Chess.com"]
[Date "2021.04.06"]
[Round "7"]
[White "crescentmoon2411"]
[Black "stanyga"]
[Result "0-1"]
[WhiteElo "2849"]
[BlackElo "2671"]
[TimeControl "180+1"]
[EndTime "11:18:17 PDT"]
[Termination "stanyga won on time"]

1. e4 {[%clk 0:03:00.9]} 1... c5 {[%clk 0:02:57.8]} 2. Nf3 {[%clk 0:03:00.8]}
2... d6 {[%clk 0:02:53.9]} 3. d4 {[%clk 0:03:00.1]} 3... cxd4 {[%clk 0:02:54]}
4. Nxd4 {[%clk 0:03:01]} 4... Nf6 {[%clk 0:02:54.3]} 5. Nc3 {[%clk 0:03:01.1]}
5... a6 {[%clk 0:02:54]} 6. Bg5 {[%clk 0:03:00.8]} 6... Nbd7 {[%clk 0:02:52.1]}
7. Qe2 {[%clk 0:02:58.3]} 7... e6 {[%clk 0:02:49.5]} 8. O-O-O {[%clk 0:02:53.5]}
8... Qc7 {[%clk 0:02:48.1]} 9. f4 {[%clk 0:02:50.6]} 9... Be7 {[%clk 0:02:44.7]}
10. g4 {[%clk 0:02:34.2]} 10... b5 {[%clk 0:02:29.7]} 11. Bg2 {[%clk 0:02:27.7]}
11... Bb7 {[%clk 0:02:28.7]} 12. Bxf6 {[%clk 0:01:49.4]} 12... Nxf6 {[%clk
0:02:07.1]} 13. g5 {[%clk 0:01:35.6]} 13... Nd7 {[%clk 0:02:04]} 14. a3 {[%clk
0:01:27.9]} 14... Rc8 {[%clk 0:02:01.4]} 15. Kb1 {[%clk 0:01:24]} 15... Nb6
{[%clk 0:01:51.8]} 16. Rd3 {[%clk 0:00:57.1]} 16... Nc4 {[%clk 0:01:43.9]} 17.
h4 {[%clk 0:00:54.8]} 17... Qb6 {[%clk 0:01:12.2]} 18. Na2 {[%clk 0:00:49.8]}
18... O-O {[%clk 0:00:50.1]} 19. h5 {[%clk 0:00:49]} 19... Rfe8 {[%clk 0:00:36]}
20. g6 {[%clk 0:00:48.9]} 20... Bf6 {[%clk 0:00:34.3]} 21. c3 {[%clk 0:00:42.1]}
21... fxg6 {[%clk 0:00:33]} 22. hxg6 {[%clk 0:00:41.9]} 22... h6 {[%clk
0:00:32.8]} 23. Rhd1 {[%clk 0:00:17.7]} 23... e5 {[%clk 0:00:31.9]} 24. Nf5
{[%clk 0:00:16.6]} 24... exf4 {[%clk 0:00:30.9]} 25. Nxd6 {[%clk 0:00:11.9]}
25... Nxd6 {[%clk 0:00:30.2]} 26. Rxd6 {[%clk 0:00:12.8]} 26... Qe3 {[%clk
0:00:29.7]} 27. Qxe3 {[%clk 0:00:10.4]} 27... fxe3 {[%clk 0:00:29.6]} 28. Nb4
{[%clk 0:00:09.1]} 28... Bh4 {[%clk 0:00:22.5]} 29. Bf1 {[%clk 0:00:03.8]} 29...
Bxe4+ {[%clk 0:00:21.6]} 30. Ka2 {[%clk 0:00:04.2]} 30... Bf3 {[%clk 0:00:21.6]}
0-1

[Event "*** Titled Tuesday Blitz"]
[Site "Chess.com"]
[Date "2021.04.06"]
[Round "7"]
[White "volkanyirik"]
[Black "DaroZin"]
[Result "0-1"]
[WhiteElo "2428"]
[BlackElo "2594"]
[TimeControl "180+1"]
[EndTime "11:18:19 PDT"]
[Termination "DaroZin won by resignation"]

1. e4 {[%clk 0:03:00.9]} 1... e6 {[%clk 0:02:55.5]} 2. Nc3 {[%clk 0:03:01.8]}
2... d5 {[%clk 0:02:55.4]} 3. d4 {[%clk 0:03:01.5]} 3... Bb4 {[%clk 0:02:54.4]}
4. exd5 {[%clk 0:03:01.3]} 4... exd5 {[%clk 0:02:54]} 5. Qf3 {[%clk 0:03:01.3]}
5... Nc6 {[%clk 0:02:51.1]} 6. Be3 {[%clk 0:02:59]} 6... Nge7 {[%clk 0:02:50.1]}
7. Bd3 {[%clk 0:02:58.4]} 7... Be6 {[%clk 0:02:44.4]} 8. Ne2 {[%clk 0:02:58]}
8... Qd7 {[%clk 0:02:44.3]} 9. h3 {[%clk 0:02:58.4]} 9... O-O-O {[%clk
0:02:42.5]} 10. a3 {[%clk 0:02:58.8]} 10... Bd6 {[%clk 0:02:41.4]} 11. Nb5
{[%clk 0:02:58.4]} 11... Nf5 {[%clk 0:02:31.3]} 12. Bxf5 {[%clk 0:02:52.9]}
12... Bxf5 {[%clk 0:02:30.8]} 13. Nxd6+ {[%clk 0:02:53.4]} 13... cxd6 {[%clk
0:02:29.6]} 14. c3 {[%clk 0:02:53.3]} 14... Rde8 {[%clk 0:02:22]} 15. Ng3 {[%clk
0:02:46.2]} 15... Be4 {[%clk 0:02:20.6]} 16. Nxe4 {[%clk 0:02:45.9]} 16... dxe4
{[%clk 0:02:21.5]} 17. Qg3 {[%clk 0:02:44.7]} 17... f5 {[%clk 0:02:18]} 18. O-O
{[%clk 0:02:42.4]} 18... h6 {[%clk 0:02:16.8]} 19. f3 {[%clk 0:02:35.4]} 19...
g5 {[%clk 0:02:15.5]} 20. fxe4 {[%clk 0:02:30.1]} 20... Rxe4 {[%clk 0:02:16.4]}
21. Qf3 {[%clk 0:02:27.4]} 21... Rhe8 {[%clk 0:02:13.9]} 22. Bd2 {[%clk
0:02:26.2]} 22... f4 {[%clk 0:02:08.9]} 23. Rae1 {[%clk 0:02:25.3]} 23... d5
{[%clk 0:02:06.4]} 24. Qh5 {[%clk 0:02:15.3]} 24... Qe6 {[%clk 0:01:57.7]} 25.
Kf2 {[%clk 0:02:07.6]} 25... Qf6 {[%clk 0:01:47.2]} 26. Qg4+ {[%clk 0:02:05.5]}
26... Kc7 {[%clk 0:01:44.8]} 27. Kg1 {[%clk 0:01:59.6]} 27... Qg6 {[%clk
0:01:39.5]} 28. h4 {[%clk 0:01:53.7]} 28... Qf6 {[%clk 0:01:35.1]} 29. Rxe4
{[%clk 0:01:44.3]} 29... dxe4 {[%clk 0:01:31.7]} 30. Bxf4+ {[%clk 0:01:44.4]}
30... gxf4 {[%clk 0:01:31.1]} 31. Rxf4 {[%clk 0:01:45.3]} 31... Qe7 {[%clk
0:01:20.7]} 32. Qh5 {[%clk 0:01:37.6]} 32... e3 {[%clk 0:01:12.8]} 33. Qe2
{[%clk 0:01:25.7]} 33... Qe6 {[%clk 0:01:06.8]} 34. g3 {[%clk 0:01:20.7]} 34...
Qg6 {[%clk 0:01:03.1]} 35. Kg2 {[%clk 0:01:19.2]} 35... Qb1 {[%clk 0:01:03.6]}
36. Rf7+ {[%clk 0:01:14.7]} 36... Kb8 {[%clk 0:01:00.9]} 37. Qb5 {[%clk
0:01:12]} 37... Qe4+ {[%clk 0:00:53.8]} 38. Kh2 {[%clk 0:01:01.2]} 38... Nd8
{[%clk 0:00:48.6]} 39. Rf4 {[%clk 0:00:56.7]} 39... Qe7 {[%clk 0:00:36.3]} 40.
Qe2 {[%clk 0:00:54.4]} 40... Nf7 {[%clk 0:00:30.8]} 41. Rf3 {[%clk 0:00:51.5]}
41... Nd6 {[%clk 0:00:30.7]} 42. c4 {[%clk 0:00:49.7]} 42... Qe4 {[%clk
0:00:30.3]} 43. d5 {[%clk 0:00:44.5]} 43... Nxc4 {[%clk 0:00:29]} 44. Rf7 {[%clk
0:00:42.2]} 44... Qxd5 {[%clk 0:00:27.9]} 45. Qf1 {[%clk 0:00:40]} 45... e2
{[%clk 0:00:26.4]} 46. Qf4+ {[%clk 0:00:40.1]} 46... Nd6 {[%clk 0:00:26.3]} 0-1

[Event "*** Titled Tuesday Blitz"]
[Site "Chess.com"]
[Date "2021.04.06"]
[Round "7"]
[White "2008king"]
[Black "Klavdia_Nik"]
[Result "0-1"]
[WhiteElo "2196"]
[BlackElo "2043"]
[TimeControl "180+1"]
[EndTime "11:18:20 PDT"]
[Termination "Klavdia_Nik won by resignation"]

1. e4 {[%clk 0:03:00.9]} 1... c5 {[%clk 0:02:54.9]} 2. Nf3 {[%clk 0:03:00.7]}
2... Nc6 {[%clk 0:02:54.3]} 3. d4 {[%clk 0:03:01.1]} 3... cxd4 {[%clk
0:02:54.5]} 4. Nxd4 {[%clk 0:03:02]} 4... Nf6 {[%clk 0:02:53.9]} 5. Nc3 {[%clk
0:03:00.8]} 5... e5 {[%clk 0:02:46.6]} 6. Ndb5 {[%clk 0:03:00.2]} 6... d6 {[%clk
0:02:45.8]} 7. Bg5 {[%clk 0:02:59.6]} 7... a6 {[%clk 0:02:41.4]} 8. Na3 {[%clk
0:02:59.7]} 8... Be6 {[%clk 0:02:39.1]} 9. Nc4 {[%clk 0:02:58.3]} 9... Nd4
{[%clk 0:02:35.1]} 10. Ne3 {[%clk 0:02:51.4]} 10... Be7 {[%clk 0:02:32.3]} 11.
Bxf6 {[%clk 0:02:50.3]} 11... Bxf6 {[%clk 0:02:31.7]} 12. Ned5 {[%clk
0:02:51.1]} 12... Bg5 {[%clk 0:02:29]} 13. Bd3 {[%clk 0:02:49.3]} 13... O-O
{[%clk 0:02:27.7]} 14. h4 {[%clk 0:02:44.2]} 14... Bh6 {[%clk 0:02:24.9]} 15. g4
{[%clk 0:02:30.9]} 15... f6 {[%clk 0:02:15.9]} 16. Bc4 {[%clk 0:02:16.2]} 16...
Rc8 {[%clk 0:02:02]} 17. Bb3 {[%clk 0:02:13.3]} 17... Kh8 {[%clk 0:01:54.3]} 18.
f4 {[%clk 0:02:05.9]} 18... Nxb3 {[%clk 0:01:48.4]} 19. axb3 {[%clk 0:02:06.8]}
19... exf4 {[%clk 0:01:38.4]} 20. Qf3 {[%clk 0:02:05.2]} 20... Bxd5 {[%clk
0:01:30.4]} 21. Nxd5 {[%clk 0:02:03.1]} 21... Rxc2 {[%clk 0:01:27.5]} 22. Rd1
{[%clk 0:01:31.9]} 22... Qa5+ {[%clk 0:01:02.8]} 23. b4 {[%clk 0:01:30.4]} 23...
Qa2 {[%clk 0:00:56.2]} 24. Qh3 {[%clk 0:00:50.9]} 24... Rxb2 {[%clk 0:00:31.5]}
25. g5 {[%clk 0:00:50.4]} 25... Qc4 {[%clk 0:00:22.5]} 26. Qf3 {[%clk
0:00:23.9]} 26... fxg5 {[%clk 0:00:15.6]} 27. hxg5 {[%clk 0:00:24.8]} 27... Bxg5
{[%clk 0:00:15.5]} 28. Rh5 {[%clk 0:00:25.2]} 28... h6 {[%clk 0:00:14.3]} 29.
Qd3 {[%clk 0:00:12.5]} 29... Qxd3 {[%clk 0:00:07.9]} 30. Rxd3 {[%clk 0:00:13.4]}
30... f3 {[%clk 0:00:07.7]} 31. Ne3 {[%clk 0:00:12.6]} 31... f2+ {[%clk
0:00:05.8]} 32. Kf1 {[%clk 0:00:12.6]} 32... Bxe3 {[%clk 0:00:05.8]} 33. Rxe3
{[%clk 0:00:13.5]} 33... Rb1+ {[%clk 0:00:05.9]} 0-1

[Event "*** Titled Tuesday Blitz"]
[Site "Chess.com"]
[Date "2021.04.06"]
[Round "7"]
[White "MaxLeto"]
[Black "Schack-Hugo"]
[Result "0-1"]
[WhiteElo "2337"]
[BlackElo "2215"]
[TimeControl "180+1"]
[EndTime "11:18:24 PDT"]
[Termination "Schack-Hugo won by checkmate"]

1. f3 {[%clk 0:03:00.9]} 1... e5 {[%clk 0:02:55.7]} 2. Kf2 {[%clk 0:03:01.7]}
2... h5 {[%clk 0:02:33.1]} 3. c3 {[%clk 0:03:01.5]} 3... h4 {[%clk 0:02:32.6]}
4. Ke3 {[%clk 0:03:00.2]} 4... d5 {[%clk 0:02:25]} 5. Kd3 {[%clk 0:03:01.1]}
5... Bf5+ {[%clk 0:02:24.7]} 6. Ke3 {[%clk 0:02:57.4]} 6... d4+ {[%clk
0:01:59.6]} 7. Kf2 {[%clk 0:02:56.2]} 7... Bc5 {[%clk 0:01:51.7]} 8. Ke1 {[%clk
0:02:55.3]} 8... h3 {[%clk 0:01:14]} 9. g3 {[%clk 0:02:43.9]} 9... Nf6 {[%clk
0:01:06.3]} 10. Na3 {[%clk 0:02:31.3]} 10... Bxa3 {[%clk 0:00:39.6]} 11. Qa4+
{[%clk 0:02:28.5]} 11... Nc6 {[%clk 0:00:36.6]} 12. Qxa3 {[%clk 0:02:28]} 12...
Qd7 {[%clk 0:00:25.5]} 13. e4 {[%clk 0:02:26.3]} 13... dxe3 {[%clk 0:00:23.7]}
14. dxe3 {[%clk 0:02:26.6]} 14... O-O-O {[%clk 0:00:23.3]} 15. Be2 {[%clk
0:02:26.8]} 15... Bd3 {[%clk 0:00:20.6]} 16. e4 {[%clk 0:02:24]} 16... Bxe2
{[%clk 0:00:20.2]} 17. Kxe2 {[%clk 0:02:17.7]} 17... Qd1+ {[%clk 0:00:18]} 18.
Kf2 {[%clk 0:02:17.3]} 18... Qc2+ {[%clk 0:00:17.3]} 19. Ne2 {[%clk 0:02:15.9]}
19... g5 {[%clk 0:00:12.4]} 20. Qb3 {[%clk 0:02:14.4]} 20... Qd3 {[%clk
0:00:09.7]} 21. Bxg5 {[%clk 0:02:15]} 21... Nxe4+ {[%clk 0:00:06.7]} 22. fxe4
{[%clk 0:02:14.7]} 22... f6 {[%clk 0:00:07]} 23. Qe6+ {[%clk 0:02:03.3]} 23...
Kb8 {[%clk 0:00:06.8]} 24. Be3 {[%clk 0:01:16.2]} 24... Qxe4 {[%clk 0:00:06.5]}
25. Rhg1 {[%clk 0:01:16.8]} 25... Rd3 {[%clk 0:00:05.7]} 26. Bc5 {[%clk
0:01:09.5]} 26... Qf3+ {[%clk 0:00:05]} 27. Ke1 {[%clk 0:01:10.1]} 27... Rhd8
{[%clk 0:00:04.3]} 28. Qxh3 {[%clk 0:00:56.4]} 28... Rd2 {[%clk 0:00:02.9]} 29.
Qg2 {[%clk 0:00:54.8]} 29... Qd3 {[%clk 0:00:02.9]} 30. b4 {[%clk 0:00:36.8]}
30... e4 {[%clk 0:00:03.2]} 31. Qf1 {[%clk 0:00:18.8]} 31... e3 {[%clk
0:00:03.2]} 32. Nd4 {[%clk 0:00:18.2]} 32... Nxd4 {[%clk 0:00:01.8]} 33. Qxd3
{[%clk 0:00:17.5]} 33... Nf3+ {[%clk 0:00:02.3]} 34. Kf1 {[%clk 0:00:17.5]}
34... Rf2# {[%clk 0:00:03.1]} 0-1